fUSD/lending_fUSD_20250513
["ID","MTS","AMOUNT","RATE_DAILY","PERIOD"]
[360939043,1747159613309,-161021.22272783,0.0004844,30]
[360939044,1747159613338,-371.80110195,0.000485,120]
[360939045,1747159613367,-1705.36314151,0.000485,120]
[360939046,1747159613397,-6086.56411602,0.00048517,120]
[360939047,1747159613425,-2060.0,0.000486,120]
[360939048,1747159613453,-4000.0,0.000486,90]
[360939049,1747159613483,-701026.01,0.0004869,120]
[360939050,1747159613513,-3000.0,0.0004869,41]
[360939051,1747159613542,-1811161.18,0.0004869,120]
[360939052,1747159613575,-2258.14698441,0.000488,120]
[360939053,1747159613604,-986.47954682,0.000488,90]
[360939054,1747159613633,-3000.0,0.0004886,41]
[360939055,1747159613667,-200.0,0.00048905,120]
[360939056,1747159613697,-5071.91632825,0.00048906,120]
[360939057,1747159613726,-26474.83712559,0.00048908,120]
[360939058,1747159613757,-26474.83712559,0.00048909,120]
[360939059,1747159613790,-200.0,0.00048909,120]
[360939060,1747159613820,-266.66666665,0.00048911,120]
[360939061,1747159613850,-2277.74155987,0.00048916,120]
[360939062,1747159613880,-6607.45944355,0.00048923,120]
[360939063,1747159613911,-2449.01001198,0.00048923,120]
[360939064,1747159613941,-26474.83712559,0.00048926,120]
[360939065,1747159613971,-914.97090889,0.00048926,120]
[360939066,1747159614002,-200.0,0.00048927,120]
[360939067,1747159614032,-4364.0,0.0004893,120]
[360939068,1747159614060,-19758.32500636,0.0004895,120]
[360939069,1747159614092,-266.66666665,0.00048952,120]
[360939070,1747159614123,-182268.0776248,0.00048955,120]
[360939071,1747159614151,-6607.45944355,0.00048958,120]
[360939072,1747159614183,-2277.74155987,0.00048959,120]
[360939073,1747159614214,-914.97090889,0.00048959,120]
[360939074,1747159614244,-6607.45944355,0.0004896,120]
[360939075,1747159614274,-914.97090889,0.00048965,120]
[360939076,1747159614303,-5071.91632825,0.00048966,120]
[360939077,1747159614331,-19758.32500636,0.00048967,120]
[360939078,1747159614359,-2449.01001198,0.00048969,120]
[360939079,1747159614388,-5071.91632825,0.0004897,120]
[360939080,1747159614417,-3000.0,0.0004897,46]
[360939081,1747159614446,-2449.01001198,0.00048973,120]
[360939082,1747159614479,-182268.0776248,0.00048973,120]
[360939083,1747159614510,-19758.32500636,0.00048975,120]
[360939084,1747159614543,-266.66666665,0.00048977,120]
[360939085,1747159614574,-182268.0776248,0.00048981,120]
[360939086,1747159614605,-2277.74155987,0.0004899,120]
[360939087,1747159614634,-1000.0,0.00048999,120]
[360939088,1747159614666,-50000.0,0.00049,49]
[360939089,1747159614696,-30000.0,0.00049,30]
[360939090,1747159614726,-548.09467573,0.00049,120]
[360939091,1747159614755,-226.59788003,0.00049,120]
[360939092,1747159614784,-1000.0,0.00049,120]
[360939093,1747159614813,-41822.48897204,0.00049,30]
[360939094,1747159614840,-2243.0,0.00049,120]
[360939095,1747159614870,-1000.0,0.00049,120]
[360939096,1747159614899,-20000.0,0.00049,120]
[360939097,1747159614928,-245.90022248,0.00049,30]
[360939098,1747159614956,-10000.0,0.00049,120]
[360939099,1747159614987,-1836.33840631,0.00049,120]
[360939100,1747159615014,-5695.04377137,0.00049,120]
[360939101,1747159615042,-1270.0,0.00049,120]
[360939102,1747159615070,-139974.69878119,0.00049,120]
[360939103,1747159615105,-30000.0,0.00049,120]
[360939104,1747159615132,-64055.92582826,0.00049,120]
[360939105,1747159615161,-100000.0,0.00049,120]
[360939106,1747159615190,-10000.0,0.00049,120]
[360939107,1747159615218,-1000.0,0.00049,120]
[360939108,1747159615246,-50623.0,0.00049,120]
[360939109,1747159615274,-786.40219908,0.00049004,30]
[360939110,1747159615303,-248.0,0.00049015,30]
[360939111,1747159615330,-1000.0,0.00049086,30]
[360939112,1747159615358,-3897.79686618,0.000492,120]
[360939113,1747159615386,-4182.0,0.000493,110]
[360939114,1747159615414,-1129.0,0.00049315,120]
[360939115,1747159615443,-641.08198641,0.00049315,120]
[360939116,1747159615478,-500.0,0.00049315,120]
[360939117,1747159615507,-500.0,0.00049315,120]
[360939118,1747159615536,-500.0,0.00049315,120]
[360939119,1747159615565,-500.0,0.00049315,120]
[360939120,1747159615593,-500.0,0.00049315,120]
[360939121,1747159615621,-500.0,0.00049315,120]
[360939122,1747159615649,-500.0,0.00049315,120]
[360939123,1747159615677,-500.0,0.00049315,120]
[360939124,1747159615705,-500.0,0.00049315,120]
[360939125,1747159615734,-500.0,0.00049315,120]
[360939126,1747159615761,-500.0,0.00049315,120]
[360939127,1747159615992,-217.13246014,0.00049315,120]
[360939128,1747159616034,-377.0,0.00049315,30]
[360939129,1747159616062,-350.0,0.00049315,30]
[360939130,1747159616091,-350.0,0.00049315,30]
[360939131,1747159616118,-1008.0,0.00049315,30]
[360939132,1747159616148,-172.0,0.00049315,30]
[360939133,1747159616349,312.7,0.00045,120]
[360939134,1747159616830,1000.0,0.00049315,30]
[360939135,1747159616991,800.0,0.0003986,60]
[360939136,1747159617537,800.0,0.00040408,60]
[360939137,1747159617877,800.0,0.00040956,60]
[360939138,1747159619822,800.0,0.00041504,60]
[360939139,1747159621383,800.0,0.000426,60]
[360939140,1747159622906,800.0,0.00043696,60]
[360939141,1747159623535,350.0,0.00049266,30]
[360939142,1747159624448,800.0,0.00044792,120]
[360939143,1747159624891,600.0,0.00049315,30]
[360939144,1747159624927,151.0,0.00049315,30]
[360939145,1747159624965,151.02653304,0.00049315,30]
[360939146,1747159625008,1359.37,9.702e-05,2]
[360939147,1747159625047,151.0,0.00049315,30]
[360939148,1747159625111,155.0,0.00049315,30]
[360939154,1747159639352,2613.32671273,0.000135,5]
[360939156,1747159682738,1331.44,9.698e-05,2]
[360939167,1747159725475,500.0,9.903e-05,2]
[360939168,1747159725550,500.0,9.903e-05,2]
[360939169,1747159725610,500.0,9.903e-05,2]
[360939170,1747159725683,500.0,9.903e-05,2]
[360939171,1747159725748,500.0,9.903e-05,2]
[360939172,1747159725812,500.0,9.903e-05,2]
[360939173,1747159725884,500.0,9.903e-05,2]
[360939174,1747159725931,500.0,9.903e-05,2]
[360939175,1747159725985,500.0,9.903e-05,2]
[360939176,1747159726045,500.0,9.903e-05,2]
[360939177,1747159726099,500.0,9.903e-05,2]
[360939178,1747159726161,500.0,9.903e-05,2]
[360939179,1747159726224,500.0,9.903e-05,2]
[360939180,1747159726288,500.0,9.903e-05,2]
[360939181,1747159726347,500.0,9.903e-05,2]
[360939182,1747159726417,500.0,9.903e-05,2]
[360939183,1747159726481,500.0,9.903e-05,2]
[360939184,1747159726528,500.0,9.903e-05,2]
[360939185,1747159726561,998.98,9.719e-05,2]
[360939186,1747159726616,500.0,9.903e-05,2]
[360939187,1747159726671,500.0,9.903e-05,2]
[360939188,1747159726726,500.0,9.903e-05,2]
[360939189,1747159726780,500.0,9.903e-05,2]
[360939190,1747159726888,500.0,9.903e-05,2]
[360939191,1747159726928,500.0,9.903e-05,2]
[360939192,1747159726972,500.0,9.903e-05,2]
[360939193,1747159727013,500.0,9.903e-05,2]
[360939194,1747159727051,500.0,9.903e-05,2]
[360939195,1747159727488,500.0,9.903e-05,2]
[360939196,1747159727563,505.51916946,9.903e-05,2]
[360939197,1747159727609,500.0,9.903e-05,2]
[360939198,1747159727651,500.0,9.903e-05,2]
[360939199,1747159727698,500.0,9.903e-05,2]
[360939200,1747159727760,500.0,9.903e-05,2]
[360939201,1747159727819,500.0,9.903e-05,2]
[360939202,1747159727859,500.0,9.903e-05,2]
[360939203,1747159727899,500.0,9.903e-05,2]
[360939204,1747159727949,500.0,9.903e-05,2]
[360939205,1747159727997,500.0,9.903e-05,2]
[360939206,1747159728045,500.0,9.903e-05,2]
[360939207,1747159728097,500.0,9.903e-05,2]
[360939208,1747159739309,1852.42,9.722e-05,2]
[360939209,1747159739988,500.0,9.903e-05,2]
[360939210,1747159740036,500.0,9.903e-05,2]
[360939211,1747159740089,500.0,9.903e-05,2]
[360939212,1747159740130,500.0,9.903e-05,2]
[360939213,1747159740169,500.0,9.903e-05,2]
[360939214,1747159740220,500.0,9.903e-05,2]
[360939215,1747159740260,500.0,9.903e-05,2]
[360939216,1747159740304,500.0,9.903e-05,2]
[360939217,1747159740348,500.0,9.903e-05,2]
[360939218,1747159740407,500.0,9.903e-05,2]
[360939219,1747159740456,500.0,9.903e-05,2]
[360939220,1747159740507,500.0,9.903e-05,2]
[360939221,1747159740553,500.0,9.903e-05,2]
[360939222,1747159740596,500.0,9.903e-05,2]
[360939223,1747159740635,505.51916946,9.903e-05,2]
[360939224,1747159740685,500.0,9.903e-05,2]
[360939225,1747159740753,500.0,9.903e-05,2]
[360939226,1747159740792,500.0,9.903e-05,2]
[360939227,1747159740845,500.0,9.903e-05,2]
[360939228,1747159740886,500.0,9.903e-05,2]
[360939229,1747159740928,500.0,9.903e-05,2]
[360939230,1747159740975,500.0,9.903e-05,2]
[360939231,1747159741040,500.0,9.903e-05,2]
[360939232,1747159741078,500.0,9.903e-05,2]
[360939265,1747159772953,494.48083054,9.903e-05,2]
[360939269,1747159795412,2726.57,9.691e-05,2]
[360939282,1747159831641,-157.85,9.957e-05,2]
[360939283,1747159831652,-140.23372487,9.96e-05,2]
[360939284,1747159831666,-749.2210027,9.96e-05,2]
[360939285,1747159831680,-185.54527243,9.96e-05,2]
[360939286,1747159831691,-1200.0,9.961e-05,2]
[360939287,1747159831702,-369.1155648,9.962e-05,2]
[360939288,1747159831716,-586.98352101,9.962e-05,2]
[360939289,1747159831739,-22943.90091419,9.962e-05,2]
[360939290,1747159831750,-157.85,9.963e-05,2]
[360939291,1747159831762,-157.85,9.968e-05,2]
[360939292,1747159831773,-157.85,9.974e-05,2]
[360939293,1747159831785,-157.17,9.979e-05,2]
[360939294,1747159831796,-157.85,9.98e-05,2]
[360939295,1747159831808,-3977.95,9.98e-05,2]
[360939296,1747159831819,-150.0,9.984e-05,2]
[360939297,1747159831830,-157.85,9.985e-05,2]
[360939298,1747159831842,-18373.46,9.985e-05,2]
[360939299,1747159831853,-280.87424643,9.989e-05,2]
[360939300,1747159831864,-157.85,9.991e-05,2]
[360939301,1747159831881,-157.85,9.996e-05,2]
[360939302,1747159831894,-1850.32,9.999e-05,2]
[360939303,1747159831907,-424.59,9.999e-05,2]
[360939304,1747159831921,-157.85,0.00010002,2]
[360939305,1747159831934,-157.85,0.00010007,2]
[360939306,1747159831947,-247.69,0.00010106,2]
[360939307,1747159831960,-162.81,0.00010196,2]
[360939308,1747159831972,-150.0,0.00010272,2]
[360939309,1747159831985,-150.0,0.00010394,2]
[360939310,1747159831997,-1925.62,0.00010475,2]
[360939311,1747159832010,-1075.0,0.00010484,2]
[360939312,1747159832022,-150.0,0.00010508,2]
[360939313,1747159832034,-150.0,0.00010689,2]
[360939314,1747159832046,-1000.0,0.000107,2]
[360939315,1747159832058,-150.0,0.00010733,2]
[360939316,1747159832071,-150.0,0.00010736,2]
[360939317,1747159832083,-150.0,0.00010742,2]
[360939318,1747159832095,-1000.0,0.00010744,2]
[360939319,1747159832107,-150.0,0.00010746,2]
[360939320,1747159832118,-150.0,0.00010746,2]
[360939321,1747159832131,-150.0,0.00010751,2]
[360939322,1747159832144,-150.0,0.00010756,2]
[360939323,1747159832162,-1121.8101,0.00010758,2]
[360939324,1747159832176,-150.0,0.00010766,2]
[360939325,1747159832188,-1000.0,0.00010769,2]
[360939326,1747159832201,-1000.0,0.0001077,2]
[360939327,1747159832213,-150.0,0.00010771,2]
[360939328,1747159832226,-150.0,0.00010776,2]
[360939329,1747159832238,-150.0,0.00010779,2]
[360939330,1747159832250,-1000.0,0.00010787,2]
[360939331,1747159832261,-1000.0,0.0001079,2]
[360939332,1747159832275,-150.0,0.00010793,2]
[360939333,1747159832287,-162.81,0.00010796,2]
[360939334,1747159832299,-1000.0,0.00010796,2]
[360939335,1747159832312,-656.89856575,0.000108,2]
[360939336,1747159832323,-577.13,0.000108,2]
[360939337,1747159832335,-1000.0,0.000108,2]
[360939338,1747159832347,-150.0,0.00010803,2]
[360939339,1747159832358,-1000.0,0.00010804,2]
[360939340,1747159832369,-150.0,0.00010804,2]
[360939341,1747159832381,-150.0,0.00010832,2]
[360939342,1747159832392,-1000.0,0.00010855,2]
[360939343,1747159832404,-1000.0,0.00010857,2]
[360939344,1747159832415,-256.91560747,0.00010858,2]
[360939345,1747159832427,-150.0,0.00010858,2]
[360939346,1747159832439,-153.5568045,0.00010858,2]
[360939347,1747159832451,-39430.5273,0.00010858,2]
[360939348,1747159832462,-789.699,0.00010858,2]
[360939349,1747159832474,-276.9338,0.00010858,2]
[360939350,1747159832486,-1772.5259,0.00010858,2]
[360939351,1747159832498,-2500.0,0.00010858,2]
[360939352,1747159832509,-817.0,0.00010859,2]
[360939353,1747159832521,-1456.0,0.00010859,2]
[360939354,1747159832532,-1250.0,0.00010859,2]
[360939355,1747159832543,-584.0,0.00010859,2]
[360939356,1747159832555,-918.0,0.00010859,2]
[360939357,1747159832566,-553.0,0.00010859,2]
[360939358,1747159832576,-1000.0,0.00010861,2]
[360939359,1747159832588,-153.55680447,0.00010866,2]
[360939360,1747159832599,-1000.0,0.00010868,2]
[360939361,1747159832611,-150.0,0.00010868,2]
[360939362,1747159832622,-5939.0,0.00010869,2]
[360939363,1747159832633,-1146.0,0.00010869,2]
[360939364,1747159832644,-150.0,0.00010873,2]
[360939365,1747159832655,-153.55680447,0.00010875,2]
[360939366,1747159832666,-150.0,0.00010876,2]
[360939367,1747159832677,-150.0,0.0001088,2]
[360939368,1747159832688,-153.55680447,0.00010883,2]
[360939369,1747159832700,-300.0,0.00010886,2]
[360939370,1747159832711,-6816.0,0.0001089,2]
[360939371,1747159832723,-650.786,0.0001089,2]
[360939372,1747159832734,-4031.0,0.0001089,2]
[360939373,1747159833218,-300.0,0.0001089,2]
[360939374,1747159833244,-272.0047,0.00010893,2]
[360939375,1747159833268,-150.0,0.00010895,2]
[360939376,1747159833297,-221.85165332,0.000109,2]
[360939377,1747159833308,-940.40544829,0.000109,2]
[360939378,1747159833319,-250.0,0.00010903,2]
[360939379,1747159833329,-1000.0,0.00010907,2]
[360939380,1747159833339,-256.58138415,0.00010923,2]
[360939381,1747159833349,-150.0,0.00010928,2]
[360939382,1747159833359,-250.0,0.00010934,2]
[360939383,1747159833369,-998.98,0.00010934,2]
[360939384,1747159833379,-1000.0,0.00010936,2]
[360939385,1747159833389,-1000.0,0.0001094,2]
[360939386,1747159833400,-150.0,0.0001094,2]
[360939387,1747159833409,-1000.0,0.00010942,2]
[360939388,1747159833419,-626.6745166,0.00010944,2]
[360939389,1747159833429,-150.0,0.00010949,2]
[360939390,1747159833438,-183.743,0.00010952,2]
[360939391,1747159833448,-400.0,0.00010958,2]
[360939392,1747159833458,-584.03,0.00010958,2]
[360939393,1747159833467,-400.0,0.00010958,2]
[360939394,1747159833477,-400.0,0.00010958,2]
[360939395,1747159833486,-520.78,0.00010958,2]
[360939396,1747159833496,-916.93,0.00010958,2]
[360939397,1747159833505,-506.41,0.00010958,2]
[360939398,1747159833516,-694.78,0.00010958,2]
[360939399,1747159833527,-400.0,0.00010958,2]
[360939400,1747159833536,-400.0,0.00010958,2]
[360939401,1747159833546,-400.0,0.00010958,2]
[360939402,1747159833556,-400.0,0.00010958,2]
[360939403,1747159833566,-400.0,0.00010958,2]
[360939404,1747159833575,-549.95852915,0.00010958,2]
[360939405,1747159833585,-400.0,0.00010958,2]
[360939406,1747159833595,-400.0,0.00010958,2]
[360939407,1747159833605,-400.0,0.00010958,2]
[360939408,1747159833615,-400.0,0.00010958,2]
[360939409,1747159833624,-400.0,0.00010958,2]
[360939410,1747159833633,-626.45,0.00010958,2]
[360939411,1747159833643,-400.0,0.00010958,2]
[360939412,1747159833652,-626.11,0.00010958,2]
[360939413,1747159833662,-400.0,0.00010958,2]
[360939414,1747159833672,-400.0,0.00010958,2]
[360939415,1747159833681,-400.0,0.00010958,2]
[360939416,1747159833691,-400.0,0.00010958,2]
[360939417,1747159833700,-463.34,0.00010958,2]
[360939418,1747159833709,-488.25,0.00010958,2]
[360939419,1747159833719,-400.0,0.00010958,2]
[360939420,1747159833729,-400.0,0.00010958,2]
[360939421,1747159833739,-400.0,0.00010958,2]
[360939422,1747159833748,-400.0,0.00010958,2]
[360939423,1747159833758,-400.0,0.00010958,2]
[360939424,1747159833767,-400.0,0.00010958,2]
[360939425,1747159833777,-400.0,0.00010958,2]
[360939426,1747159833786,-657.34,0.00010958,2]
[360939427,1747159833797,-400.0,0.00010958,2]
[360939428,1747159833807,-441.68,0.00010958,2]
[360939429,1747159833817,-400.0,0.00010958,2]
[360939430,1747159833827,-284.11214283,0.00010958,2]
[360939431,1747159833836,-400.0,0.00010958,2]
[360939432,1747159833846,-645.08,0.00010958,2]
[360939433,1747159833856,-400.0,0.00010958,2]
[360939434,1747159833865,-530.14,0.00010958,2]
[360939435,1747159833875,-400.0,0.00010958,2]
[360939436,1747159833884,-400.0,0.00010958,2]
[360939437,1747159833894,-400.0,0.00010958,2]
[360939438,1747159833904,-400.0,0.00010958,2]
[360939439,1747159833914,-400.0,0.00010958,2]
[360939440,1747159833925,-400.0,0.00010958,2]
[360939441,1747159833935,-3402.967,0.00010958,2]
[360939442,1747159833945,-400.0,0.00010958,2]
[360939443,1747159833955,-400.0,0.00010958,2]
[360939444,1747159833966,-852.22,0.00010958,2]
[360939445,1747159833975,-400.0,0.00010958,2]
[360939446,1747159833985,-400.0,0.00010958,2]
[360939447,1747159833999,-400.0,0.00010958,2]
[360939448,1747159834010,-400.0,0.00010958,2]
[360939449,1747159834020,-400.0,0.00010958,2]
[360939450,1747159834030,-820.71,0.00010958,2]
[360939451,1747159834040,-400.0,0.00010958,2]
[360939452,1747159834051,-400.0,0.00010958,2]
[360939453,1747159834061,-400.0,0.00010958,2]
[360939454,1747159834072,-172.16116461,0.00010958,2]
[360939455,1747159834082,-406.32849814,0.00010958,2]
[360939456,1747159834091,-400.0,0.00010958,2]
[360939457,1747159834101,-400.0,0.00010958,2]
[360939458,1747159834110,-400.0,0.00010958,2]
[360939459,1747159834120,-400.0,0.00010958,2]
[360939460,1747159834130,-400.0,0.00010958,2]
[360939461,1747159834142,-400.0,0.00010958,2]
[360939462,1747159834152,-400.0,0.00010958,2]
[360939463,1747159834162,-621.83,0.00010958,2]
[360939464,1747159834171,-400.0,0.00010958,2]
[360939465,1747159834181,-400.0,0.00010958,2]
[360939466,1747159834190,-400.0,0.00010958,2]
[360939467,1747159834199,-400.0,0.00010958,2]
[360939468,1747159834209,-478.47,0.00010958,2]
[360939469,1747159834219,-400.0,0.00010958,2]
[360939470,1747159834230,-255.74533581,0.00010958,2]
[360939471,1747159834239,-404.78,0.00010958,2]
[360939472,1747159834249,-400.0,0.00010958,2]
[360939473,1747159834259,-400.0,0.00010958,2]
[360939474,1747159834269,-256.49914192,0.00010958,2]
[360939475,1747159834279,-400.0,0.00010958,2]
[360939476,1747159834289,-400.0,0.00010958,2]
[360939477,1747159834298,-400.0,0.00010958,2]
[360939478,1747159834308,-1162.05,0.00010958,2]
[360939479,1747159834319,-400.0,0.00010958,2]
[360939480,1747159834329,-400.0,0.00010958,2]
[360939481,1747159834338,-400.0,0.00010958,2]
[360939482,1747159834348,-400.0,0.00010958,2]
[360939483,1747159834359,-1079.27,0.00010958,2]
[360939484,1747159834369,-577.59,0.00010958,2]
[360939485,1747159834379,-426.15,0.00010958,2]
[360939486,1747159834389,-400.0,0.00010958,2]
[360939487,1747159834400,-3487.68,0.00010958,2]
[360939488,1747159834411,-400.0,0.00010958,2]
[360939489,1747159834422,-400.0,0.00010958,2]
[360939490,1747159834433,-400.0,0.00010958,2]
[360939491,1747159834444,-400.0,0.00010958,2]
[360939492,1747159834454,-400.0,0.00010958,2]
[360939493,1747159834464,-400.0,0.00010958,2]
[360939494,1747159834474,-400.0,0.00010958,2]
[360939495,1747159834484,-400.0,0.00010958,2]
[360939496,1747159834493,-400.0,0.00010958,2]
[360939497,1747159834503,-400.0,0.00010958,2]
[360939498,1747159834513,-476.88,0.00010958,2]
[360939499,1747159834524,-400.0,0.00010958,2]
[360939500,1747159834534,-400.0,0.00010958,2]
[360939501,1747159834544,-291.47573847,0.00010958,2]
[360939502,1747159834554,-1738.21,0.00010958,2]
[360939503,1747159834564,-400.0,0.00010958,2]
[360939504,1747159834573,-459.19,0.00010958,2]
[360939505,1747159834583,-422.0041823,0.00010958,2]
[360939506,1747159834593,-400.0,0.00010958,2]
[360939507,1747159834603,-444.36,0.00010958,2]
[360939508,1747159834613,-720.63,0.00010958,2]
[360939509,1747159834623,-1510.56,0.00010958,2]
[360939510,1747159834633,-400.0,0.00010958,2]
[360939511,1747159834643,-400.0,0.00010958,2]
[360939512,1747159834653,-400.0,0.00010958,2]
[360939513,1747159834663,-615.27,0.00010958,2]
[360939514,1747159834673,-400.0,0.00010958,2]
[360939515,1747159834682,-400.0,0.00010958,2]
[360939516,1747159834692,-400.0,0.00010958,2]
[360939517,1747159834702,-400.0,0.00010958,2]
[360939518,1747159834711,-400.0,0.00010958,2]
[360939519,1747159834722,-400.0,0.00010958,2]
[360939520,1747159834732,-420.8,0.00010958,2]
[360939521,1747159834742,-400.0,0.00010958,2]
[360939522,1747159834752,-1176.5,0.00010958,2]
[360939523,1747159834762,-400.0,0.00010958,2]
[360939524,1747159834771,-1437.22,0.00010958,2]
[360939525,1747159834781,-400.0,0.00010958,2]
[360939526,1747159834790,-400.0,0.00010958,2]
[360939527,1747159834801,-652.56,0.00010958,2]
[360939528,1747159834811,-400.0,0.00010958,2]
[360939529,1747159834820,-400.0,0.00010958,2]
[360939530,1747159834829,-488.24,0.00010958,2]
[360939531,1747159834839,-400.0,0.00010958,2]
[360939532,1747159834849,-1273.02,0.00010958,2]
[360939533,1747159834858,-400.0,0.00010958,2]
[360939534,1747159834867,-400.0,0.00010958,2]
[360939535,1747159834877,-801.33,0.00010958,2]
[360939536,1747159834886,-400.0,0.00010958,2]
[360939537,1747159834895,-400.0,0.00010958,2]
[360939538,1747159834904,-788.97,0.00010958,2]
[360939539,1747159834913,-400.0,0.00010958,2]
[360939540,1747159834925,-542.34,0.00010958,2]
[360939541,1747159834934,-414.37,0.00010958,2]
[360939542,1747159834946,-400.0,0.00010958,2]
[360939543,1747159834957,-400.0,0.00010958,2]
[360939544,1747159834966,-449.97,0.00010958,2]
[360939545,1747159834976,-426.3,0.00010958,2]
[360939546,1747159834986,-400.0,0.00010958,2]
[360939547,1747159834996,-400.0,0.00010958,2]
[360939548,1747159835006,-400.0,0.00010958,2]
[360939549,1747159835016,-400.0,0.00010958,2]
[360939550,1747159835025,-400.0,0.00010958,2]
[360939551,1747159835035,-302.58835385,0.00010958,2]
[360939552,1747159835045,-1871.8,0.00010958,2]
[360939553,1747159835055,-400.0,0.00010958,2]
[360939554,1747159835064,-475.68,0.00010958,2]
[360939555,1747159835074,-1359.59,0.00010958,2]
[360939556,1747159835084,-472.81,0.00010958,2]
[360939557,1747159835094,-400.0,0.00010958,2]
[360939558,1747159835103,-400.0,0.00010958,2]
[360939559,1747159835113,-400.0,0.00010958,2]
[360939560,1747159835122,-539.11,0.00010958,2]
[360939561,1747159835132,-400.0,0.00010958,2]
[360939562,1747159835142,-400.0,0.00010958,2]
[360939563,1747159835154,-1207.49,0.00010958,2]
[360939564,1747159835164,-400.0,0.00010958,2]
[360939565,1747159835174,-400.0,0.00010958,2]
[360939566,1747159835184,-400.0,0.00010958,2]
[360939567,1747159835196,-400.0,0.00010958,2]
[360939568,1747159835206,-400.0,0.00010958,2]
[360939569,1747159835217,-400.0,0.00010958,2]
[360939570,1747159835227,-400.0,0.00010958,2]
[360939571,1747159835237,-400.0,0.00010958,2]
[360939572,1747159835246,-426.356592,0.00010958,2]
[360939573,1747159835255,-400.0,0.00010958,2]
[360939574,1747159835264,-400.0,0.00010958,2]
[360939575,1747159835274,-1135.76,0.00010958,2]
[360939576,1747159835284,-400.0,0.00010958,2]
[360939577,1747159835294,-1233.2,0.00010958,2]
[360939578,1747159835303,-400.0,0.00010958,2]
[360939579,1747159835313,-657.57,0.00010958,2]
[360939580,1747159835323,-400.0,0.00010958,2]
[360939581,1747159835333,-400.0,0.00010958,2]
[360939582,1747159835343,-726.64,0.00010958,2]
[360939583,1747159835353,-400.0,0.00010958,2]
[360939584,1747159835363,-400.0,0.00010958,2]
[360939585,1747159835372,-400.0,0.00010958,2]
[360939586,1747159835382,-529.97,0.00010958,2]
[360939587,1747159835391,-1268.75,0.00010958,2]
[360939588,1747159835401,-248.43499636,0.00010958,2]
[360939589,1747159835411,-608.84,0.00010958,2]
[360939590,1747159835424,-400.0,0.00010958,2]
[360939591,1747159835433,-400.0,0.00010958,2]
[360939592,1747159835443,-400.0,0.00010958,2]
[360939593,1747159835453,-541.42723846,0.00010958,2]
[360939594,1747159835463,-457.91,0.00010958,2]
[360939595,1747159835473,-400.0,0.00010958,2]
[360939596,1747159835482,-370.02395604,0.00010958,2]
[360939597,1747159835492,-7701.691241,0.00010958,2]
[360939598,1747159835502,-416.03,0.00010958,2]
[360939599,1747159835512,-291.987093,0.00010958,2]
[360939600,1747159835522,-995.85,0.00010958,2]
[360939601,1747159835531,-736.58,0.00010958,2]
[360939602,1747159835541,-400.0,0.00010958,2]
[360939603,1747159835551,-400.0,0.00010958,2]
[360939604,1747159835560,-411.21,0.00010958,2]
[360939605,1747159835569,-400.0,0.00010958,2]